[Event "44th Chess Olympiad Women 2022"]
[Site "Chennai"]
[Date "2022.08.08"]
[Round "10.38"]
[White "Abrorova, Sabrina"]
[Black "Suleiman Azumi Ayisha"]
[Result "1/2-1/2"]
[WhiteElo "1799"]
[BlackElo "1833"]
[Annotator "NA RC"]
[PlyCount "169"]
[EventDate "2022.??.??"]
[TimeControl "60"]

1. d4 {[%emt 0:00:14]} Nf6 {[%emt 0:00:15]} 2. Nf3 {[%emt 0:00:13]} g6 {
[%emt 0:00:19]} 3. c4 {[%emt 0:00:24]} Bg7 {[%emt 0:00:10]} 4. Nc3 {[%emt 0:00:
00]} O-O {[%emt 0:00:23]} 5. e4 {[%emt 0:00:35]} d6 {[%emt 0:00:03]} 6. Be2 {
[%emt 0:00:12]} Nbd7 {[%emt 0:00:39]} 7. O-O {[%emt 0:00:44]} e5 {[%emt 0:00:
00]} 8. Be3 {[%emt 0:01:53]} Ng4 {[%emt 0:03:28]} 9. Bg5 {[%emt 0:01:34]} f6 {
[%emt 0:00:30]} 10. Bd2 {[%emt 0:00:36]} Nh6 {[%emt 0:00:45]} 11. d5 {[%emt 0:
00:00]} a5 {[%emt 0:01:23]} 12. a3 {[%emt 0:01:18]} Nf7 {[%emt 0:04:43]} 13.
Ne1 {[%emt 0:03:29]} c6 {[%emt 0:16:45]} 14. dxc6 {[%emt 0:08:28]} bxc6 {
[%emt 0:00:03]} 15. Be3 {[%emt 0:04:50]} Qe7 {[%emt 0:07:49]} 16. b4 {[%emt 0:
00:00]} f5 {[%emt 0:01:16]} 17. f3 {[%emt 0:00:42]} f4 {[%emt 0:02:01]} 18. Bf2
{[%emt 0:00:14]} axb4 {[%emt 0:10:14]} 19. axb4 {[%emt 0:02:46]} Bb7 {[%emt 0:
00:00]} 20. Nc2 {[%emt 0:04:52]} Rfc8 {[%emt 0:05:56]} 21. Qd2 {[%emt 0:06:01]}
h5 {[%emt 0:10:19]} 22. Ra5 {[%emt 0:11:41]} Rxa5 {[%emt 0:06:27]} 23. bxa5 {
[%emt 0:00:02]} Ra8 {[%emt 0:00:06]} 24. Rb1 {[%emt 0:01:48]} Nc5 {[%emt 0:00:
00]} 25. Bxc5 {[%emt 0:08:48]} dxc5 {[%emt 0:00:03]} 26. Na4 {[%emt 0:00:33]}
Bf8 {[%emt 0:06:52]} 27. Ne1 {[%emt 0:04:02]} Ba6 {[%emt 0:06:32]} 28. Qc3 {
[%emt 0:06:30]} h4 {[%emt 0:01:14]} 29. h3 {[%emt 0:04:27]} Qg5 {[%emt 0:01:11]
} 30. Nd3 {[%emt 0:08:11]} Bc8 {[%emt 0:00:29]} 31. Nf2 {[%emt 0:00:24]} Qg3 {
[%emt 0:03:09]} 32. Nb6 {[%emt 0:03:52]} Rb8 {[%emt 0:00:16]} 33. Nh1 {[%emt 0:
00:00]} Qg5 {[%emt 0:00:02]} 34. Kf1 {[%emt 0:02:08]} Nd8 {[%emt 0:01:24]} 35.
Ra1 {[%emt 0:01:39]} Ba6 {[%emt 0:03:02]} 36. Nf2 {[%emt 0:03:31]} Ne6 {
[%emt 0:00:35]} 37. Kg1 {[%emt 0:00:26]} Nd4 {[%emt 0:00:12]} 38. Bf1 {[%emt 0:
00:00]} Bd6 {[%emt 0:02:57]} 39. Ra2 {[%emt 0:01:03]} Bc7 {[%emt 0:01:44]} 40.
Ng4 {[%emt 0:00:39]} Qe7 {[%emt 0:01:43]} 41. Rb2 {[%emt 0:06:56]} Kg7 {
[%emt 0:03:01]} 42. Na4 {[%emt 0:03:14]} Rxb2 {[%emt 0:06:57]} 43. Nxb2 {
[%emt 0:00:02]} Qd8 {[%emt 0:00:25]} 44. Qa3 {[%emt 0:05:20]} Ne6 {[%emt 0:00:
00]} 45. Kh2 {[%emt 0:01:23]} Qd2 {[%emt 0:01:14]} 46. Nd3 {[%emt 0:06:57]}
Qxa5 {[%emt 0:12:43]} 47. Qxa5 {[%emt 0:02:05]} Bxa5 {[%emt 0:00:02]} 48. Ndxe5
{[%emt 0:00:02]} Nd4 {[%emt 0:01:39]} 49. Nd7 {[%emt 0:00:38]} Bb4 {[%emt 0:00:
00]} 50. Bd3 {[%emt 0:00:30]} Bc8 {[%emt 0:02:16]} 51. Ndf6 {[%emt 0:03:32]}
Kf7 {[%emt 0:01:50]} 52. e5 {[%emt 0:01:25]} Bf5 {[%emt 0:00:51]} 53. Bxf5 {
[%emt 0:03:01]} gxf5 {[%emt 0:00:02]} 54. Nf2 {[%emt 0:00:29]} Ke6 {[%emt 0:00:
00]} 55. Nd3 {[%emt 0:00:08]} Nc2 {[%emt 0:01:46]} 56. Nh5 {[%emt 0:00:25]} Bd2
{[%emt 0:01:08]} 57. Nhxf4+ {[%emt 0:01:31]} Bxf4+ {[%emt 0:00:07]} 58. Nxf4+ {
[%emt 0:00:01]} Kxe5 {[%emt 0:00:01]} 59. Ng6+ {[%emt 0:00:02]} Kf6 {[%emt 0:
00:00]} 60. Nxh4 {[%emt 0:02:22]} Ne3 {[%emt 0:00:11]} 61. g4 {[%emt 0:00:10]}
fxg4 {[%emt 0:02:02]} 62. hxg4 {[%emt 0:00:02]} Nxc4 {[%emt 0:00:13]} 63. Kg3 {
[%emt 0:00:27]} Nb2 {[%emt 0:00:43]} 64. f4 {[%emt 0:01:07]} c4 {[%emt 0:00:18]
} 65. g5+ {[%emt 0:00:17]} Kf7 {[%emt 0:00:28]} 66. Kf3 {[%emt 0:00:58]} c3 {
[%emt 0:00:25]} 67. Ke2 {[%emt 0:00:01]} c5 {[%emt 0:00:47]} 68. f5 {[%emt 0:
00:00]} c4 {[%emt 0:00:22]} 69. Nf3 {[%emt 0:00:43]} Nd3 {[%emt 0:01:10]} 70.
Kd1 {[%emt 0:00:50]} Nf2+ {[%emt 0:00:19]} 71. Kc2 {[%emt 0:00:13]} Ne4 {
[%emt 0:00:23]} 72. g6+ {[%emt 0:00:49]} Kf6 {[%emt 0:00:15]} 73. Nd4 {[%emt 0:
00:00]} Kg7 {[%emt 0:01:06]} 74. Ne6+ {[%emt 0:00:19]} Kg8 {[%emt 0:00:32]} 75.
g7 {[%emt 0:00:45]} Kf7 {[%emt 0:00:02]} 76. Kc1 {[%emt 0:00:32]} Nf6 {[%emt 0:
00:00]} 77. Kc2 {[%emt 0:00:23]} Nd5 {[%emt 0:00:02]} 78. Ng5+ {[%emt 0:00:39]}
Kxg7 {[%emt 0:00:06]} 79. Ne4 {[%emt 0:00:07]} Kf7 {[%emt 0:00:44]} 80. Nxc3 {
[%emt 0:00:07]} Ne3+ {[%emt 0:00:29]} 81. Kb2 {[%emt 0:00:32]} Nxf5 {[%emt 0:
00:00]} 82. Ka3 {[%emt 0:00:02]} Ke6 {[%emt 0:00:31]} 83. Kb4 {[%emt 0:00:02]}
Ne3 {[%emt 0:00:03]} 84. Nd1 {[%emt 0:00:34]} Nxd1 {[%emt 0:01:08]} 85. Kxc4 {
[%emt 0:00:02]} 1/2-1/2

[Event "44th Chess Olympiad Women 2022"]
[Site "Chennai"]
[Date "2022.08.08"]
[Round "10.38"]
[White "Enomah Emmanuella Trust"]
[Black "Antonova, Nadezhda"]
[Result "0-1"]
[WhiteElo "1901"]
[BlackElo "1832"]
[Annotator "NA RC"]
[PlyCount "142"]
[EventDate "2022.??.??"]
[TimeControl "60"]

1. c4 {[%emt 0:00:04]} Nf6 {[%emt 0:00:19]} 2. g3 {[%emt 0:00:05]} g6 {[%emt 0:
00:00]} 3. Bg2 {[%emt 0:00:04]} Bg7 {[%emt 0:00:09]} 4. Nc3 {[%emt 0:00:12]}
O-O {[%emt 0:00:23]} 5. e4 {[%emt 0:00:04]} d6 {[%emt 0:00:31]} 6. Nge2 {
[%emt 0:00:08]} c5 {[%emt 0:00:28]} 7. O-O {[%emt 0:00:18]} Nc6 {[%emt 0:00:22]
} 8. d3 {[%emt 0:01:07]} a6 {[%emt 0:01:04]} 9. h3 {[%emt 0:01:05]} Rb8 {
[%emt 0:00:33]} 10. f4 {[%emt 0:00:09]} Ne8 {[%emt 0:07:39]} 11. f5 {[%emt 0:
00:00]} b5 {[%emt 0:02:44]} 12. cxb5 {[%emt 0:03:22]} axb5 {[%emt 0:00:03]} 13.
Rb1 {[%emt 0:00:29]} b4 {[%emt 0:03:02]} 14. Nd5 {[%emt 0:03:38]} e6 {[%emt 0:
00:00]} 15. Ne3 {[%emt 0:07:10]} Ba6 {[%emt 0:09:22]} 16. Nf4 {[%emt 0:03:35]}
Nc7 {[%emt 0:01:46]} 17. Ng4 {[%emt 0:04:17]} Re8 {[%emt 0:19:22]} 18. f6 {
[%emt 0:02:58]} Bf8 {[%emt 0:09:22]} 19. Ne2 {[%emt 0:00:44]} Ne5 {[%emt 0:00:
00]} 20. Nh6+ {[%emt 0:03:04]} Kh8 {[%emt 0:03:50]} 21. Bg5 {[%emt 0:05:06]}
Qd7 {[%emt 0:02:31]} 22. Nf4 {[%emt 0:05:54]} d5 {[%emt 0:06:24]} 23. Qd2 {
[%emt 0:06:49]} dxe4 {[%emt 0:05:40]} 24. Bxe4 {[%emt 0:00:25]} Red8 {[%emt 0:
00:00]} 25. Rbd1 {[%emt 0:02:56]} Qd4+ {[%emt 0:00:29]} 26. Qf2 {[%emt 0:04:45]
} Qxf2+ {[%emt 0:03:49]} 27. Kxf2 {[%emt 0:03:28]} Ne8 {[%emt 0:01:00]} 28. Ke3
{[%emt 0:09:35]} Nd6 {[%emt 0:01:01]} 29. b3 {[%emt 0:01:06]} Bb7 {[%emt 0:00:
00]} 30. g4 {[%emt 0:02:00]} Rd7 {[%emt 0:04:16]} 31. Bxb7 {[%emt 0:03:52]}
Nxb7 {[%emt 0:02:19]} 32. Rf2 {[%emt 0:03:54]} Na5 {[%emt 0:04:08]} 33. Rfd2 {
[%emt 0:00:34]} Nac6 {[%emt 0:00:12]} 34. Ne2 {[%emt 0:00:18]} Rbd8 {[%emt 0:
00:00]} 35. Ke4 {[%emt 0:01:31]} Rd5 {[%emt 0:02:45]} 36. Bf4 {[%emt 0:03:27]}
R8d7 {[%emt 0:02:22]} 37. d4 {[%emt 0:01:45]} cxd4 {[%emt 0:01:10]} 38. Nxd4 {
[%emt 0:00:17]} g5 {[%emt 0:00:29]} 39. Nxf7+ {[%emt 0:09:02]} Nxf7 {[%emt 0:
00:00]} 40. Nxc6 {[%emt 0:00:19]} gxf4 {[%emt 0:00:22]} 41. Rxd5 {[%emt 0:00:
00]} exd5+ {[%emt 0:30:47]} 42. Kxf4 {[%emt 0:00:13]} Rd6 {[%emt 0:00:00]} 43.
Nxb4 {[%emt 0:00:00]} Rxf6+ {[%emt 0:00:00]} 44. Kg3 {[%emt 0:00:00]} Bd6+ {
[%emt 0:00:00]} 45. Kg2 {[%emt 0:00:00]} Bxb4 {[%emt 0:00:00]} 46. Rxd5 {
[%emt 0:00:00]} Be1 {[%emt 0:00:00]} 47. Rd1 {[%emt 0:00:00]} Bh4 {[%emt 0:00:
00]} 48. Rd2 {[%emt 0:00:00]} Ng5 {[%emt 0:00:00]} 49. b4 {[%emt 0:00:00]} Be1
{[%emt 0:00:00]} 50. Rb2 {[%emt 0:00:00]} Rb6 {[%emt 0:00:00]} 51. a3 {[%emt 0:
00:00]} Kg7 {[%emt 0:00:00]} 52. Re2 {[%emt 0:00:00]} Bh4 {[%emt 0:00:00]} 53.
Rb2 {[%emt 0:00:00]} Kf6 {[%emt 0:00:00]} 54. Rb3 {[%emt 0:00:00]} Ke5 {
[%emt 0:00:00]} 55. b5 {[%emt 0:00:00]} Kd4 {[%emt 0:00:00]} 56. a4 {[%emt 0:
00:00]} Kc5 {[%emt 0:02:57]} 57. Rc3+ {[%emt 0:00:19]} Kb4 {[%emt 0:00:01]} 58.
Rc6 {[%emt 0:00:23]} Ka5 {[%emt 0:01:02]} 59. Kf1 {[%emt 0:00:34]} Rxc6 {
[%emt 0:00:12]} 60. bxc6 {[%emt 0:00:06]} Kb6 {[%emt 0:00:00]} 61. Ke2 {
[%emt 0:00:24]} Kxc6 {[%emt 0:00:05]} 62. Ke3 {[%emt 0:00:09]} Nxh3 {[%emt 0:
00:00]} 63. Ke4 {[%emt 0:01:58]} Ng5+ {[%emt 0:00:26]} 64. Kf5 {[%emt 0:00:12]}
Kb6 {[%emt 0:00:22]} 65. Kf6 {[%emt 0:00:22]} Ka5 {[%emt 0:00:48]} 66. Kg7 {
[%emt 0:00:16]} Be1 {[%emt 0:00:08]} 67. Kh6 {[%emt 0:00:24]} Bd2 {[%emt 0:00:
00]} 68. Kg7 {[%emt 0:00:39]} Kxa4 {[%emt 0:00:09]} 69. Kh6 {[%emt 0:00:15]}
Kb5 {[%emt 0:00:14]} 70. Kh5 {[%emt 0:01:01]} Kc4 {[%emt 0:00:08]} 71. Kh4 {
[%emt 0:00:22]} Kd5 {[%emt 0:02:08]} 0-1

[Event "44th Chess Olympiad Women 2022"]
[Site "Chennai"]
[Date "2022.08.08"]
[Round "10.38"]
[White "Hotami, Mutriba"]
[Black "Onoja, Iyefu Joy"]
[Result "0-1"]
[WhiteElo "1846"]
[BlackElo "1869"]
[Annotator "NA RC"]
[PlyCount "118"]
[EventDate "2022.??.??"]
[TimeControl "60"]

1. e4 {[%emt 0:00:02]} e6 {[%emt 0:00:07]} 2. d4 {[%emt 0:00:03]} d5 {[%emt 0:
00:00]} 3. Nc3 {[%emt 0:00:05]} Bb4 {[%emt 0:00:05]} 4. e5 {[%emt 0:00:25]} c5
{[%emt 0:00:08]} 5. a3 {[%emt 0:00:18]} Bxc3+ {[%emt 0:00:18]} 6. bxc3 {
[%emt 0:00:07]} Qc7 {[%emt 0:00:21]} 7. Nf3 {[%emt 0:03:29]} Nc6 {[%emt 0:00:
00]} 8. Be3 {[%emt 0:02:32]} Bd7 {[%emt 0:01:27]} 9. Bd3 {[%emt 0:01:42]} Nge7
{[%emt 0:00:22]} 10. O-O {[%emt 0:04:50]} c4 {[%emt 0:00:34]} 11. Be2 {[%emt 0:
00:00]} Nf5 {[%emt 0:00:14]} 12. Qd2 {[%emt 0:07:15]} f6 {[%emt 0:02:58]} 13.
exf6 {[%emt 0:12:11]} gxf6 {[%emt 0:00:09]} 14. Bf4 {[%emt 0:00:03]} Qa5 {
[%emt 0:03:52]} 15. a4 {[%emt 0:05:22]} O-O-O {[%emt 0:06:39]} 16. Rfb1 {
[%emt 0:02:01]} Nce7 {[%emt 0:00:07]} 17. Rb4 {[%emt 0:06:30]} Ng6 {[%emt 0:00:
00]} 18. Rab1 {[%emt 0:03:56]} Bc6 {[%emt 0:00:12]} 19. Bf1 {[%emt 0:07:49]}
Rde8 {[%emt 0:03:45]} 20. g3 {[%emt 0:02:20]} Nxf4 {[%emt 0:03:45]} 21. Qxf4 {
[%emt 0:00:10]} Qc7 {[%emt 0:00:04]} 22. Qxc7+ {[%emt 0:01:17]} Kxc7 {[%emt 0:
00:00]} 23. a5 {[%emt 0:01:17]} Nd6 {[%emt 0:00:47]} 24. Re1 {[%emt 0:06:25]}
Ne4 {[%emt 0:04:31]} 25. Bh3 {[%emt 0:02:39]} Re7 {[%emt 0:05:12]} 26. Re3 {
[%emt 0:02:50]} b6 {[%emt 0:08:13]} 27. axb6+ {[%emt 0:07:59]} axb6 {[%emt 0:
00:00]} 28. Nh4 {[%emt 0:03:17]} Bd7 {[%emt 0:04:44]} 29. Bg2 {[%emt 0:01:42]}
Ra8 {[%emt 0:02:57]} 30. Bxe4 {[%emt 0:04:56]} dxe4 {[%emt 0:00:32]} 31. Rxc4+
{[%emt 0:00:22]} Kb7 {[%emt 0:00:18]} 32. f3 {[%emt 0:02:17]} Ra1+ {[%emt 0:00:
00]} 33. Kf2 {[%emt 0:02:55]} Rc1 {[%emt 0:00:06]} 34. fxe4 {[%emt 0:01:55]}
Rxc2+ {[%emt 0:00:09]} 35. Kf3 {[%emt 0:04:34]} Rxh2 {[%emt 0:02:13]} 36. d5 {
[%emt 0:00:31]} exd5 {[%emt 0:00:47]} 37. exd5 {[%emt 0:00:11]} Rxe3+ {[%emt 0:
00:00]} 38. Kxe3 {[%emt 0:00:01]} b5 {[%emt 0:03:32]} 39. Rf4 {[%emt 0:01:13]}
f5 {[%emt 0:03:15]} 40. Nxf5 {[%emt 0:00:43]} Bxf5 {[%emt 0:00:15]} 41. Rxf5 {
[%emt 0:30:02]} Kb6 {[%emt 0:30:33]} 42. Kd4 {[%emt 0:00:00]} Rd2+ {[%emt 0:00:
00]} 43. Ke5 {[%emt 0:00:00]} Kc5 {[%emt 0:00:00]} 44. Ke6 {[%emt 0:00:00]} Rd3
{[%emt 0:00:00]} 45. Re5 {[%emt 0:01:44]} Rxg3 {[%emt 0:00:00]} 46. d6+ {
[%emt 0:00:10]} Kc6 {[%emt 0:00:00]} 47. Rh5 {[%emt 0:02:19]} Rxc3 {[%emt 0:00:
00]} 48. Rxh7 {[%emt 0:00:16]} Re3+ {[%emt 0:00:00]} 49. Kf5 {[%emt 0:00:20]}
Kxd6 {[%emt 0:00:00]} 50. Kf4 {[%emt 0:01:15]} Re8 {[%emt 0:00:00]} 51. Rh5 {
[%emt 0:00:33]} Kc6 {[%emt 0:00:00]} 52. Rg5 {[%emt 0:00:43]} b4 {[%emt 0:00:
00]} 53. Rh5 {[%emt 0:00:24]} Re7 {[%emt 0:00:00]} 54. Rg5 {[%emt 0:00:21]} b3
{[%emt 0:00:00]} 55. Rg3 {[%emt 0:00:26]} Rb7 {[%emt 0:00:00]} 56. Rg1 {
[%emt 0:00:25]} b2 {[%emt 0:00:00]} 57. Rb1 {[%emt 0:00:01]} Kc5 {[%emt 0:00:
00]} 58. Ke3 {[%emt 0:00:10]} Kc4 {[%emt 0:00:00]} 59. Kd2 {[%emt 0:00:47]} Kb3
{[%emt 0:00:00]} 0-1

[Event "44th Chess Olympiad Women 2022"]
[Site "Chennai"]
[Date "2022.08.08"]
[Round "10.38"]
[White "Ogbiyoyo, Perpetual Eloho"]
[Black "Saidova, Rukhshona"]
[Result "1/2-1/2"]
[WhiteElo "1886"]
[BlackElo "1624"]
[Annotator "NA RC"]
[PlyCount "61"]
[EventDate "2022.??.??"]
[TimeControl "60"]

1. e4 {[%emt 0:00:14]} e5 {[%emt 0:00:19]} 2. Nf3 {[%emt 0:00:09]} Nc6 {
[%emt 0:00:18]} 3. d4 {[%emt 0:00:14]} exd4 {[%emt 0:00:29]} 4. Bc4 {[%emt 0:
00:00]} Bb4+ {[%emt 0:00:54]} 5. c3 {[%emt 0:00:14]} dxc3 {[%emt 0:00:29]} 6.
O-O {[%emt 0:00:23]} d6 {[%emt 0:00:59]} 7. a3 {[%emt 0:01:23]} c2 {[%emt 0:00:
00]} 8. Qxc2 {[%emt 0:00:32]} Ba5 {[%emt 0:01:49]} 9. b4 {[%emt 0:02:52]} Bb6 {
[%emt 0:00:27]} 10. Qb3 {[%emt 0:02:17]} Qe7 {[%emt 0:01:39]} 11. Bg5 {[%emt 0:
00:00]} Nf6 {[%emt 0:01:59]} 12. Nc3 {[%emt 0:00:30]} Be6 {[%emt 0:07:56]} 13.
Nd5 {[%emt 0:00:36]} Bxd5 {[%emt 0:02:15]} 14. exd5 {[%emt 0:00:18]} Ne5 {
[%emt 0:00:16]} 15. Nxe5 {[%emt 0:04:38]} dxe5 {[%emt 0:00:17]} 16. Bb5+ {
[%emt 0:01:30]} c6 {[%emt 0:03:23]} 17. dxc6 {[%emt 0:00:54]} O-O {[%emt 0:00:
00]} 18. cxb7 {[%emt 0:02:31]} Qxb7 {[%emt 0:01:08]} 19. Qa4 {[%emt 0:04:01]}
Qe7 {[%emt 0:04:17]} 20. Rad1 {[%emt 0:01:47]} Bd4 {[%emt 0:04:40]} 21. Qa6 {
[%emt 0:02:39]} Rad8 {[%emt 0:02:45]} 22. Bxf6 {[%emt 0:03:47]} Qxf6 {[%emt 0:
00:00]} 23. Qxf6 {[%emt 0:00:10]} gxf6 {[%emt 0:00:08]} 24. Rd3 {[%emt 0:01:13]
} f5 {[%emt 0:03:47]} 25. Rfd1 {[%emt 0:00:47]} Rd6 {[%emt 0:01:37]} 26. Kf1 {
[%emt 0:00:41]} Rc8 {[%emt 0:01:18]} 27. Ke2 {[%emt 0:01:21]} Rc2+ {[%emt 0:00:
00]} 28. R1d2 {[%emt 0:01:02]} Rxd2+ {[%emt 0:01:29]} 29. Rxd2 {[%emt 0:00:11]}
f4 {[%emt 0:00:43]} 30. Bd3 {[%emt 0:02:54]} Kg7 {[%emt 0:07:45]} 31. Be4 {
[%emt 0:01:13]} 1/2-1/2

[Event "44th Chess Olympiad Women 2022"]
[Site "Chennai"]
[Date "2022.08.08"]
[Round "10.39"]
[White "Antonio, Renelsa Taiane"]
[Black "Leung, Hoi Ting"]
[Result "1-0"]
[WhiteElo "1471"]
[BlackElo "1277"]
[Annotator "NA RC"]
[PlyCount "117"]
[EventDate "2022.??.??"]
[TimeControl "60"]

1. e4 {[%emt 0:00:05]} e6 {[%emt 0:00:07]} 2. Nc3 {[%emt 0:00:57]} d5 {[%emt 0:
00:00]} 3. exd5 {[%emt 0:00:19]} exd5 {[%emt 0:00:11]} 4. d4 {[%emt 0:00:37]}
Nf6 {[%emt 0:00:45]} 5. Nf3 {[%emt 0:01:51]} Be6 {[%emt 0:02:13]} 6. Be3 {
[%emt 0:00:27]} c6 {[%emt 0:02:26]} 7. Bd3 {[%emt 0:02:48]} Bd6 {[%emt 0:02:59]
} 8. Ne2 {[%emt 0:03:39]} Qc7 {[%emt 0:03:23]} 9. c3 {[%emt 0:02:19]} Nbd7 {
[%emt 0:02:57]} 10. Qc2 {[%emt 0:00:41]} h6 {[%emt 0:04:34]} 11. h3 {[%emt 0:
00:00]} Rc8 {[%emt 0:03:07]} 12. Qd2 {[%emt 0:11:32]} c5 {[%emt 0:11:53]} 13.
dxc5 {[%emt 0:02:12]} Bxc5 {[%emt 0:05:43]} 14. Ned4 {[%emt 0:04:11]} Bxd4 {
[%emt 0:10:39]} 15. Nxd4 {[%emt 0:00:28]} a6 {[%emt 0:06:48]} 16. Bf5 {[%emt 0:
00:00]} Nc5 {[%emt 0:03:15]} 17. Nxe6 {[%emt 0:05:44]} Nxe6 {[%emt 0:01:15]}
18. O-O {[%emt 0:02:03]} Qc6 {[%emt 0:05:24]} 19. Rad1 {[%emt 0:05:00]} Rd8 {
[%emt 0:02:45]} 20. Rfe1 {[%emt 0:01:35]} O-O {[%emt 0:04:58]} 21. f3 {[%emt 0:
00:00]} Qd6 {[%emt 0:08:15]} 22. Qf2 {[%emt 0:06:25]} Qc6 {[%emt 0:02:00]} 23.
Qg3 {[%emt 0:05:34]} Kh8 {[%emt 0:03:44]} 24. Qh4 {[%emt 0:02:12]} Qc4 {
[%emt 0:04:00]} 25. Qxc4 {[%emt 0:06:03]} dxc4 {[%emt 0:00:15]} 26. Bxe6 {
[%emt 0:02:16]} fxe6 {[%emt 0:02:19]} 27. Bc5 {[%emt 0:04:57]} Rxd1 {[%emt 0:
00:00]} 28. Rxd1 {[%emt 0:00:02]} Rc8 {[%emt 0:00:29]} 29. Bd4 {[%emt 0:01:35]}
Rd8 {[%emt 0:01:28]} 30. Re1 {[%emt 0:00:56]} Rd6 {[%emt 0:00:54]} 31. Kf2 {
[%emt 0:01:02]} Kg8 {[%emt 0:01:06]} 32. Re2 {[%emt 0:01:09]} Kf7 {[%emt 0:00:
00]} 33. f4 {[%emt 0:02:12]} Rd5 {[%emt 0:01:08]} 34. Kf3 {[%emt 0:01:48]} Nd7
{[%emt 0:00:56]} 35. g4 {[%emt 0:00:38]} g6 {[%emt 0:00:49]} 36. Kg3 {[%emt 0:
00:00]} Rb5 {[%emt 0:00:54]} 37. h4 {[%emt 0:02:09]} Rd5 {[%emt 0:00:25]} 38.
Kf3 {[%emt 0:01:21]} Rb5 {[%emt 0:00:37]} 39. Ke4 {[%emt 0:01:16]} Nf6+ {
[%emt 0:01:10]} 40. Bxf6 {[%emt 0:00:15]} Kxf6 {[%emt 0:00:04]} 41. g5+ {
[%emt 0:30:06]} hxg5 {[%emt 0:01:36]} 42. hxg5+ {[%emt 0:00:00]} Ke7 {[%emt 0:
00:00]} 43. Rd2 {[%emt 0:00:00]} Rc5 {[%emt 0:02:52]} 44. Rh2 {[%emt 0:00:00]}
Kd6 {[%emt 0:01:29]} 45. Rh6 {[%emt 0:00:00]} Rb5 {[%emt 0:01:00]} 46. Rxg6 {
[%emt 0:00:00]} Rxb2 {[%emt 0:02:16]} 47. f5 {[%emt 0:00:00]} Re2+ {[%emt 0:00:
00]} 48. Kf3 {[%emt 0:00:00]} Re1 {[%emt 0:04:31]} 49. f6 {[%emt 0:00:00]} Ke5
{[%emt 0:07:12]} 50. Kf2 {[%emt 0:02:21]} Re4 {[%emt 0:01:44]} 51. Kg3 {
[%emt 0:02:04]} b5 {[%emt 0:02:32]} 52. f7 {[%emt 0:00:40]} Re3+ {[%emt 0:00:
00]} 53. Kf2 {[%emt 0:00:28]} Rxc3 {[%emt 0:01:07]} 54. f8=Q {[%emt 0:00:34]}
Rc2+ {[%emt 0:00:15]} 55. Ke3 {[%emt 0:00:16]} Rc3+ {[%emt 0:00:22]} 56. Kd2 {
[%emt 0:00:26]} Rd3+ {[%emt 0:00:11]} 57. Kc2 {[%emt 0:00:11]} Re3 {[%emt 0:00:
00]} 58. Qc5+ {[%emt 0:00:04]} Kf4 {[%emt 0:00:22]} 59. Rf6+ {[%emt 0:00:28]}
1-0

[Event "44th Chess Olympiad Women 2022"]
[Site "Chennai"]
[Date "2022.08.08"]
[Round "10.39"]
[White "Deng, Jing Xin Crystal"]
[Black "Caxita, Esperanca"]
[Result "0-1"]
[WhiteElo "1914"]
[BlackElo "1955"]
[Annotator "NA RC"]
[PlyCount "144"]
[EventDate "2022.??.??"]
[TimeControl "60"]

1. d4 {[%emt 0:00:02]} d5 {[%emt 0:00:09]} 2. c4 {[%emt 0:00:03]} c6 {[%emt 0:
00:00]} 3. Nf3 {[%emt 0:00:03]} Nf6 {[%emt 0:00:17]} 4. Nc3 {[%emt 0:00:05]} e6
{[%emt 0:00:39]} 5. Bg5 {[%emt 0:00:04]} Nbd7 {[%emt 0:00:34]} 6. e3 {[%emt 0:
00:00]} Qa5 {[%emt 0:01:44]} 7. cxd5 {[%emt 0:00:50]} Nxd5 {[%emt 0:03:49]} 8.
Qd2 {[%emt 0:00:57]} Bb4 {[%emt 0:00:26]} 9. Rc1 {[%emt 0:00:02]} N7b6 {
[%emt 0:03:42]} 10. e4 {[%emt 0:06:35]} Nxc3 {[%emt 0:01:03]} 11. bxc3 {
[%emt 0:00:03]} Ba3 {[%emt 0:00:09]} 12. Rb1 {[%emt 0:01:07]} O-O {[%emt 0:00:
00]} 13. Be2 {[%emt 0:07:23]} f6 {[%emt 0:01:14]} 14. Bh4 {[%emt 0:11:31]} Bd7
{[%emt 0:05:04]} 15. O-O {[%emt 0:02:34]} Bd6 {[%emt 0:01:13]} 16. e5 {[%emt 0:
00:00]} Be7 {[%emt 0:01:11]} 17. Qc2 {[%emt 0:03:48]} Rae8 {[%emt 0:04:17]} 18.
exf6 {[%emt 0:03:09]} Bxf6 {[%emt 0:01:02]} 19. Bxf6 {[%emt 0:00:30]} Rxf6 {
[%emt 0:00:15]} 20. Ne5 {[%emt 0:01:10]} Bc8 {[%emt 0:00:47]} 21. Bd3 {[%emt 0:
00:00]} g6 {[%emt 0:01:06]} 22. Ng4 {[%emt 0:04:36]} Rf4 {[%emt 0:06:23]} 23.
Bxg6 {[%emt 0:02:42]} Re7 {[%emt 0:00:20]} 24. Bxh7+ {[%emt 0:07:54]} Rxh7 {
[%emt 0:02:54]} 25. Qg6+ {[%emt 0:00:09]} Rg7 {[%emt 0:01:41]} 26. Nf6+ {
[%emt 0:03:44]} Rxf6 {[%emt 0:01:53]} 27. Qxf6 {[%emt 0:00:02]} Nd5 {[%emt 0:
00:00]} 28. Qe5 {[%emt 0:01:10]} Qxc3 {[%emt 0:07:32]} 29. Rb3 {[%emt 0:11:17]}
Qa5 {[%emt 0:00:31]} 30. Qb8 {[%emt 0:01:46]} Qc7 {[%emt 0:01:00]} 31. Qxa7 {
[%emt 0:03:10]} Nf4 {[%emt 0:01:24]} 32. g3 {[%emt 0:02:19]} Ne2+ {[%emt 0:00:
00]} 33. Kg2 {[%emt 0:01:42]} Qd8 {[%emt 0:03:29]} 34. Qc5 {[%emt 0:06:53]}
Qxd4 {[%emt 0:04:08]} 35. Qxd4 {[%emt 0:00:50]} Nxd4 {[%emt 0:00:06]} 36. Ra3 {
[%emt 0:03:06]} Bd7 {[%emt 0:02:48]} 37. f4 {[%emt 0:02:14]} c5 {[%emt 0:00:49]
} 38. Rc1 {[%emt 0:00:36]} b6 {[%emt 0:00:14]} 39. Ra8+ {[%emt 0:00:58]} Kh7 {
[%emt 0:01:01]} 40. Rb8 {[%emt 0:00:51]} Ne2 {[%emt 0:02:36]} 41. Rf1 {[%emt 0:
00:00]} b5 {[%emt 0:30:32]} 42. Kf2 {[%emt 0:02:19]} Nc3 {[%emt 0:06:47]} 43.
a3 {[%emt 0:00:32]} c4 {[%emt 0:00:17]} 44. Ke3 {[%emt 0:00:00]} Kg6 {[%emt 0:
00:00]} 45. Kd4 {[%emt 0:00:00]} Ne2+ {[%emt 0:00:00]} 46. Ke3 {[%emt 0:00:00]}
Nc3 {[%emt 0:00:00]} 47. Kd4 {[%emt 0:00:00]} Na4 {[%emt 0:00:00]} 48. Re1 {
[%emt 0:00:00]} Kf6 {[%emt 0:00:00]} 49. Re5 {[%emt 0:00:00]} Bc6 {[%emt 0:00:
00]} 50. Rf8+ {[%emt 0:00:00]} Ke7 {[%emt 0:00:00]} 51. Rc8 {[%emt 0:00:00]}
Kd7 {[%emt 0:00:00]} 52. Rf8 {[%emt 0:00:00]} Kc7 {[%emt 0:00:00]} 53. Rxe6 {
[%emt 0:00:00]} Rd7+ {[%emt 0:00:00]} 54. Ke3 {[%emt 0:00:00]} c3 {[%emt 0:00:
00]} 55. f5 {[%emt 0:03:21]} Nb6 {[%emt 0:00:00]} 56. Rff6 {[%emt 0:03:36]}
Nd5+ {[%emt 0:00:00]} 57. Kd3 {[%emt 0:00:13]} Nxf6+ {[%emt 0:00:00]} 58. Kxc3
{[%emt 0:00:04]} Ne4+ {[%emt 0:00:00]} 59. Kb2 {[%emt 0:01:12]} Rd2+ {[%emt 0:
00:00]} 60. Kc1 {[%emt 0:00:01]} Rxh2 {[%emt 0:00:00]} 61. g4 {[%emt 0:00:18]}
Rg2 {[%emt 0:01:10]} 62. Rg6 {[%emt 0:00:08]} Rf2 {[%emt 0:01:13]} 63. Rg7+ {
[%emt 0:00:57]} Kd6 {[%emt 0:00:16]} 64. Rf7 {[%emt 0:00:27]} Bd7 {[%emt 0:00:
00]} 65. Rf8 {[%emt 0:01:45]} Rg2 {[%emt 0:00:36]} 66. f6 {[%emt 0:00:43]} Rxg4
{[%emt 0:00:18]} 67. f7 {[%emt 0:00:03]} Ke7 {[%emt 0:00:54]} 68. Rd8 {[%emt 0:
00:00]} Rf4 {[%emt 0:00:25]} 69. Rb8 {[%emt 0:00:38]} Rxf7 {[%emt 0:00:19]} 70.
a4 {[%emt 0:00:02]} bxa4 {[%emt 0:00:13]} 71. Kb2 {[%emt 0:00:06]} Rf3 {
[%emt 0:00:25]} 72. Rb4 {[%emt 0:00:46]} a3+ {[%emt 0:00:30]} 0-1